lending/lending_fUSD_20251022
["ID","MTS","AMOUNT","RATE_DAILY","PERIOD"]
[392107941,1761166049158,-941.7865633,0.00027425,120]
[392107942,1761166049187,-250.0,0.00027425,2]
[392107943,1761166049207,-1200.0,0.00027498,2]
[392107944,1761166049227,-300.0,0.00027499,2]
[392107945,1761166049247,-300.0,0.00027499,2]
[392107946,1761166049268,-1200.0,0.00027499,2]
[392107947,1761166049287,-2000.0,0.00027499,2]
[392107948,1761166049307,-200.0,0.00027499,2]
[392107949,1761166049338,-618.48,0.0002777,15]
[392107950,1761166049360,-554.95618847,0.00027908,120]
[392107951,1761166050096,-152.46177155,0.00027908,120]
[392107955,1761166105262,25.50004035,0.00018367,2]
[392107957,1761166113235,-275.13999984,0.00018367,2]
[392107958,1761166116375,-234.16,0.00018367,2]
[392107959,1761166119139,-230.15815529,0.00018367,2]
[392107960,1761166133300,-469.49180452,0.00018367,2]
[392107961,1761166133325,-1234.45,0.00019333,2]
[392107962,1761166133350,-1234.45,0.000203,2]
[392107963,1761166133380,-1234.45,0.00021267,2]
[392107964,1761166133411,-1234.45,0.00022233,2]
[392107965,1761166133436,-1234.45,0.000232,2]
[392107966,1761166133461,-1234.45,0.00024167,2]
[392107967,1761166133487,-1234.45,0.00025133,2]
[392107968,1761166133513,-1234.45,0.000261,2]
[392107969,1761166133539,-1234.45,0.00027067,2]
[392107970,1761166133563,-167.14336402,0.00027808,2]
[392107971,1761166133588,-1200.0,0.00027907,2]
[392107972,1761166133823,-1792.58203998,0.00027908,120]
[392107973,1761166133848,-2698.81253058,0.00027908,120]
[392107974,1761166133873,-326.83238996,0.00027908,2]
[392107975,1761166133897,-423.98620919,0.00027908,120]
[392107976,1761166133921,-250.0,0.00027908,2]
[392107977,1761166133948,-300.0,0.00027908,120]
[392107978,1761166133975,-1234.45,0.00028033,2]
[392107979,1761166133999,-218.12622997,0.00028253,4]
[392107980,1761166134024,-200.0,0.00028663,2]
[392107981,1761166134049,-5181.00846938,0.00028664,2]
[392107982,1761166134073,-19999.99,0.00028664,2]
[392107983,1761166134103,-1234.45,0.00029,2]
[392107984,1761166134127,-420.0,0.00029714,2]
[392107985,1761166134153,-1680.0,0.00029845,2]
[392107986,1761166134187,-1234.45,0.00029966,2]
[392107987,1761166134210,-1007.60293934,0.00029999,2]
[392107988,1761166134233,-163.73183504,0.0003,2]
[392107989,1761166134257,-461.20090331,0.0003,2]
[392107990,1761166134281,-209.4,0.0003,2]
[392107991,1761166134306,-500.0,0.0003,2]
[392107992,1761166134332,-500.0,0.0003,2]
[392107993,1761166134358,-500.0,0.0003,2]
[392107994,1761166134382,-500.0,0.0003,2]
[392107995,1761166134410,-500.0,0.0003,2]
[392107996,1761166134435,-500.0,0.0003,2]
[392107997,1761166134460,-500.0,0.0003,2]
[392107998,1761166134484,-500.0,0.0003,2]
[392107999,1761166134508,-500.0,0.0003,2]
[392108000,1761166134532,-500.0,0.0003,2]
[392108001,1761166134556,-500.0,0.0003,2]
[392108002,1761166134580,-500.0,0.0003,2]
[392108003,1761166134605,-500.0,0.0003,2]
[392108004,1761166134633,-500.0,0.0003,2]
[392108005,1761166134662,-500.0,0.0003,2]
[392108006,1761166134686,-500.0,0.0003,2]
[392108007,1761166134715,-500.0,0.0003,2]
[392108008,1761166134739,-500.0,0.0003,2]
[392108009,1761166134773,-500.0,0.0003,2]
[392108010,1761166134797,-500.0,0.0003,2]
[392108011,1761166134824,-500.0,0.0003,2]
[392108012,1761166134849,-180.0342478,0.0003,2]
[392108013,1761166134875,-500.0,0.0003,2]
[392108014,1761166134902,-500.0,0.0003,2]
[392108015,1761166134926,-500.0,0.0003,2]
[392108016,1761166134951,-500.0,0.0003,2]
[392108017,1761166134976,-500.0,0.0003,2]
[392108018,1761166135001,-500.0,0.0003,2]
[392108019,1761166135026,-500.0,0.0003,2]
[392108020,1761166135052,-500.0,0.0003,2]
[392108021,1761166135078,-500.0,0.0003,2]
[392108022,1761166135106,-500.0,0.0003,2]
[392108023,1761166147088,-517.8,0.00030001,24]
[392108024,1761166147109,-502.0,0.00030143,2]
[392108025,1761166147129,-270.5735801,0.00030153,120]
[392108026,1761166147148,-167.14336402,0.00030567,2]
[392108027,1761166147168,-2500.0,0.00030589,120]
[392108028,1761166147190,-300.0,0.00030589,120]
[392108029,1761166147211,-400.0,0.00030666,2]
[392108030,1761166147238,-500.0,0.00030667,5]
[392108031,1761166147259,-168.88822331,0.00030667,5]
[392108032,1761166147278,-500.0,0.00030667,5]
[392108033,1761166147299,-251.85710336,0.00030667,5]
[392108034,1761166147323,-548.33216919,0.00030667,5]
[392108035,1761166147350,-1234.45,0.00030933,2]
[392108036,1761166147370,-800.0,0.00031113,7]
[392108037,1761166147389,-500.0,0.00031215,5]
[392108038,1761166147409,-289.0,0.0003185,2]
[392108039,1761166147429,-1234.45,0.000319,2]
[392108040,1761166147452,-280.0,0.00032108,3]
[392108041,1761166147471,-2351.0,0.0003239,3]
[392108042,1761166147492,-4902.17759956,0.00032806,2]
[392108043,1761166147514,-1234.45,0.00032866,2]
[392108044,1761166147533,-250.0,0.00033001,2]
[392108045,1761166147552,-151.0,0.00033018,2]
[392108046,1761166147572,-226.02260155,0.00033018,2]
[392108047,1761166147593,-151.0,0.00033018,2]
[392108048,1761166147614,-151.0,0.00033018,2]
[392108049,1761166147634,-151.0,0.00033018,2]
[392108050,1761166147654,-151.0,0.00033018,2]
[392108051,1761166147679,-151.0,0.00033018,2]
[392108052,1761166147700,-151.0,0.00033018,2]
[392108053,1761166147719,-151.0,0.00033018,2]
[392108054,1761166147739,-151.0,0.00033018,2]
[392108055,1761166147758,-151.0,0.00033018,2]
[392108056,1761166147778,-151.0,0.00033018,2]
[392108057,1761166147797,-151.0,0.00033018,2]
[392108058,1761166147819,-151.0,0.00033018,2]
[392108059,1761166147839,-151.0,0.00033018,2]
[392108060,1761166147859,-151.0,0.00033018,2]
[392108061,1761166147884,-151.0,0.00033018,2]
[392108062,1761166147905,-151.0,0.00033018,2]
[392108063,1761166147924,-151.0,0.00033018,2]
[392108064,1761166147945,-151.0,0.00033018,2]
[392108065,1761166147966,-151.0,0.00033018,2]
[392108066,1761166147986,-151.0,0.00033018,2]
[392108067,1761166148007,-560.0,0.00033028,2]
[392108068,1761166148026,-9790.16,0.00033038,2]
[392108069,1761166148046,-150.99,0.00033038,2]
[392108070,1761166148065,-9999.99,0.00033038,2]
[392108071,1761166148084,-987.8,0.00033038,2]
[392108072,1761166148107,-185.39,0.00033074,2]
[392108073,1761166148131,-500.0,0.000331,5]
[392108074,1761166148150,-500.0,0.000331,2]
[392108075,1761166148171,-1234.45,0.00033833,2]
[392108076,1761166148190,-260.85068657,0.00034013,2]
[392108077,1761166148209,-5000.0,0.00034126,2]
[392108078,1761166148397,-1962.52950295,0.00034224,4]
[392108079,1761166148420,-1234.45,0.000348,2]
[392108080,1761166148440,-3292.0,0.00035153,3]
[392108081,1761166148460,-500.0,0.0003533,30]
[392108082,1761166148480,-577.11931432,0.00035351,2]
[392108083,1761166148501,-7786.26,0.00035446,2]
[392108084,1761166148520,-167.0,0.0003557,2]
[392108085,1761166148540,-783.0,0.00035573,2]
[392108086,1761166148560,-500.0,0.000356,2]
[392108087,1761166148580,-250.0,0.00035707,2]
[392108088,1761166148600,-1234.45,0.00035766,2]
[392108089,1761166148619,-258.32714,0.00035888,30]
[392108090,1761166148638,-258.32714,0.00036088,30]
[392108091,1761166148658,-258.32714,0.00036288,30]
[392108092,1761166148690,-258.32714,0.00036488,30]
[392108093,1761166148711,-3142.87,0.0003665,2]
[392108094,1761166148732,-258.32714,0.00036688,30]
[392108095,1761166148751,-4081.0,0.000367,5]
[392108096,1761166148773,-1234.45,0.00036733,2]
[392108097,1761166148793,-258.32714,0.00036888,30]
[392108098,1761166148814,-861.0904,0.00036888,7]
[392108099,1761166148837,-258.32714,0.00037088,30]
[392108100,1761166148858,-176.25397829,0.000372,120]
[392108101,1761166148879,-258.32714,0.00037288,30]
[392108102,1761166148900,-258.32714,0.00037488,30]
[392108103,1761166148920,-258.32714,0.00037688,30]
[392108104,1761166148940,-258.32714,0.00037888,30]
[392108105,1761166148960,-258.32714,0.00038088,30]
[392108106,1761166148980,-4609.0,0.00038151,3]
[392108107,1761166149000,-258.32714,0.00038288,30]
[392108108,1761166149021,-581.0,0.00038313,5]
[392108109,1761166149041,-258.32714,0.00038488,30]
[392108110,1761166149064,-167.0,0.00038534,2]
[392108111,1761166149084,-258.32714,0.00038688,30]
[392108112,1761166149104,-258.32714,0.00039088,30]
[392108113,1761166149125,-721.04,0.00039149,2]
[392108114,1761166149145,-258.32714,0.00039288,30]
[392108115,1761166149165,-258.32714,0.00039488,30]
[392108116,1761166149185,-258.32714,0.00039688,30]
[392108117,1761166149205,-1500.0,0.000397,2]
[392108118,1761166149225,-258.32714,0.00039888,30]
[392108119,1761166149245,-185.39,0.00039924,2]
[392108120,1761166149265,-258.32714,0.00040088,30]
[392108121,1761166149288,-1962.52950294,0.000401,6]
[392108122,1761166149308,-200.0,0.00040276,2]
[392108123,1761166149328,-258.32714,0.00040288,30]
[392108124,1761166151596,151.0,0.00033018,2]
[392108125,1761166152202,195.89999107,0.00033018,2]
[392108126,1761166156104,-150.0,0.00040488,4]
[392108127,1761166156126,-150.0,0.00040488,4]
[392108128,1761166156150,-150.0,0.00040488,4]
[392108129,1761166156170,-258.32714,0.00040488,30]
[392108130,1761166172060,166.66,0.00040147,30]
[392108142,1761166231291,-721.04,0.00040618,2]
[392108143,1761166231302,-258.32714,0.00040688,30]
[392108144,1761166231315,-258.32714,0.00040888,30]
[392108145,1761166231327,-166.66,0.00040992,30]
[392108146,1761166231338,-258.32714,0.00041088,30]
[392108147,1761166231348,-270.5735801,0.00041112,120]
[392108148,1761166231358,-258.32714,0.00041288,30]
[392108149,1761166231367,-258.32714,0.00041488,30]
[392108150,1761166231377,-167.0,0.00041499,2]
[392108151,1761166231387,-152.31800453,0.00041611,2]
[392108152,1761166231398,-1000.0,0.00041611,2]
[392108153,1761166231408,-131.17271537,0.00041611,2]
[392108154,1761166231421,-642.87163445,0.00041611,2]
[392108155,1761166231460,-125.62334001,0.00041611,2]
[392108156,1761166231472,-100.33231017,0.00041611,2]
[392108157,1761166231484,-548.86346677,0.00041611,2]
[392108158,1761166231496,-451.13653323,0.00041611,2]
[392108159,1761166231510,-615.26981955,0.00041611,2]
[392108160,1761166231521,-258.32714,0.00041688,30]
[392108161,1761166231533,-166.66,0.00041837,30]
[392108162,1761166231543,-258.32714,0.00041888,30]
[392108163,1761166231556,-168.0,0.00041929,2]
[392108164,1761166231567,-410.11137599,0.00042012,2]
[392108165,1761166231578,-500.0,0.00042073,30]
[392108166,1761166231590,-721.04,0.00042086,2]
[392108167,1761166231600,-166.66,0.00042682,30]
[392108168,1761166231612,-500.0,0.00042737,30]
[392108169,1761166231624,-166.66,0.00042912,2]
[392108171,1761166231635,-325.40799123,0.00043221,30]
[392108173,1761166231648,-224.59200877,0.00043221,30]
[392108174,1761166231658,-500.0,0.0004336,30]
[392108177,1761166231668,-666.0,0.00043454,20]
[392108179,1761166231679,-166.66,0.00043527,30]
[392108181,1761166231690,-2200.0,0.00043553,5]
[392108183,1761166231701,-721.04,0.00043554,2]
[392108185,1761166231711,-300.0,0.00043554,5]
[392108187,1761166231722,-1133.0,0.0004365,30]
[392108189,1761166231732,-538.94,0.000438,7]
[392108192,1761166231743,-6856.19114986,0.00043916,15]
[392108194,1761166231754,-173.09670764,0.00043916,28]
[392108196,1761166231764,-3068.20191257,0.00043997,2]
[392108198,1761166231775,-500.0,0.00043999,120]
[392108201,1761166231785,-500.0,0.00043999,120]
[392108204,1761166231799,-506.66296033,0.00043999,120]
[392108207,1761166231809,-500.0,0.00043999,120]
[392108210,1761166231820,-500.0,0.00043999,120]
[392108212,1761166231831,-500.0,0.00043999,120]
[392108213,1761166231844,-1393.08,0.00043999,120]
[392108214,1761166231855,-500.0,0.00043999,120]
[392108215,1761166231865,-500.0,0.00043999,7]
[392108216,1761166231876,-500.0,0.00043999,120]
[392108217,1761166231888,-500.0,0.00043999,120]
[392108218,1761166231898,-500.0,0.00043999,120]
[392108219,1761166231909,-500.0,0.00043999,120]
[392108220,1761166231920,-500.0,0.00043999,30]
[392108221,1761166231931,-500.0,0.00043999,120]
[392108222,1761166231942,-500.0,0.00043999,120]
[392108223,1761166231952,-502.58859303,0.00043999,30]
[392108224,1761166231963,-500.0,0.00043999,2]
[392108225,1761166231973,-500.0,0.00043999,120]
[392108226,1761166231988,-500.0,0.00043999,120]
[392108227,1761166231999,-67516.70499912,0.00044,120]
[392108228,1761166232012,-74777.70463553,0.00044,120]
[392108229,1761166232030,-512.41277663,0.00044,120]
[392108230,1761166232044,-1887.5,0.00044,120]
[392108231,1761166232057,-487.58722337,0.00044,120]
[392108241,1761166237304,-500.0,0.00043999,120]
[392108242,1761166237316,-500.0,0.00043999,120]
[392108243,1761166237326,-568.00342478,0.00043999,120]
[392108244,1761166237336,-500.0,0.00043999,120]
[392108245,1761166237347,-1137.65279496,0.00044,120]
[392108246,1761166237356,-168.0,0.00044016,2]
[392108247,1761166237366,-6856.19114981,0.00044025,15]
[392108248,1761166237375,-1133.0,0.000441,30]
[392108249,1761166237387,-173.09670764,0.00044117,28]
[392108250,1761166237396,-2510.45330598,0.00044125,3]
[392108251,1761166237636,-1738.56608105,0.00044125,3]
[392108273,1761166237918,-2094.13408527,0.00044125,3]
[392108275,1761166237927,-6856.19114981,0.00044135,15]
[392108277,1761166237937,-394.27,0.00044167,2]
[392108279,1761166237946,-6133.72297193,0.00044244,15]
[392108430,1761166239482,-722.46817788,0.00044244,15]
[392108432,1761166239492,-6343.1534723,0.0004429,3]
[392108434,1761166239501,-3100.0,0.000443,16]
[392108436,1761166239510,-173.09670764,0.00044318,28]
[392108438,1761166239519,-166.66,0.00044329,2]
[392108441,1761166239538,-6326.42249098,0.00044353,15]
[392108451,1761166239622,-529.76865883,0.00044353,15]
[392108453,1761166239632,-166.66,0.00044372,30]
[392108455,1761166239641,-6343.1534723,0.0004439,3]
[392108457,1761166239651,-1058.44379772,0.000444,16]
[392108462,1761166239688,-5241.55620228,0.000444,16]
[392108464,1761166239698,-6856.19114981,0.00044463,15]
[392108466,1761166239707,-167.0,0.00044463,2]
[392108468,1761166239716,-6343.1534723,0.0004449,3]
[392108470,1761166239725,-9500.0,0.000445,16]
[392108472,1761166239735,-173.09670764,0.0004452,28]
[392108474,1761166239744,-12686.3069446,0.0004454,3]
[392108476,1761166239753,-1133.0,0.0004455,30]
[392108478,1761166239763,-23777.97030971,0.0004455,2]
[392108480,1761166239772,-458.36691,0.0004455,23]
[392108482,1761166239781,-6856.19114981,0.00044572,15]
[392108484,1761166239790,-6343.1534723,0.0004459,3]
[392108486,1761166239799,-12700.0,0.000446,16]
[392108488,1761166239808,-168.0,0.00044634,2]
[392108490,1761166239817,-6343.1534723,0.00044647,3]
[392108492,1761166239826,-5800.0,0.00044657,14]
[392108494,1761166239836,-6856.19114981,0.00044681,15]
[392108496,1761166239849,-12686.3069446,0.0004469,3]
[392108498,1761166239859,-15900.0,0.000447,16]
[392108500,1761166239869,-168.0,0.00044706,2]
[392108502,1761166239878,-458.36692,0.0004471,24]
[392108504,1761166239889,-150.0,0.00044713,60]
[392108506,1761166239899,-150.0,0.00044713,60]
[392108509,1761166239912,-150.0,0.00044713,60]
[392108510,1761166239924,-174.41632804,0.00044713,60]
[392108512,1761166239935,-150.0,0.00044713,60]
[392108514,1761166239944,-150.0,0.00044713,60]
[392108516,1761166239954,-150.0,0.00044713,60]
[392108518,1761166239964,-150.0,0.00044713,60]
[392108520,1761166239974,-150.0,0.00044713,60]
[392108523,1761166239984,-150.0,0.00044713,60]
[392108525,1761166239995,-150.0,0.00044713,60]
[392108528,1761166240004,-150.0,0.00044713,60]
[392108529,1761166240013,-150.0,0.00044713,60]
[392108532,1761166240023,-150.0,0.00044713,60]
[392108534,1761166240033,-150.0,0.00044713,60]
[392108535,1761166240043,-150.0,0.00044713,60]
[392108539,1761166240053,-150.0,0.00044713,2]
[392108540,1761166240062,-500.0,0.00044713,60]
[392108543,1761166240072,-500.0,0.00044713,60]
[392108545,1761166240081,-150.0,0.00044713,60]
[392108546,1761166240091,-173.09670764,0.00044721,28]
[392108549,1761166240101,-150.0,0.00044768,60]
[392108551,1761166240114,-150.0,0.00044768,60]
[392108553,1761166240123,-150.0,0.00044768,2]
[392108555,1761166240134,-645.78696846,0.00044768,60]
[392108557,1761166240143,-500.0,0.00044768,60]
[392108559,1761166240153,-150.0,0.00044768,60]
[392108561,1761166240163,-19029.4604169,0.00044771,3]
[392108563,1761166240172,-171.65455731,0.00044781,30]
[392108565,1761166240182,-2052.0,0.00044781,2]
[392108567,1761166240195,-818.0,0.00044781,2]
[392108569,1761166240205,-572.0,0.00044781,2]
[392108571,1761166240215,-3411.0,0.00044781,2]
[392108573,1761166240224,-1311.0,0.00044781,2]
[392108575,1761166240234,-1591.0,0.00044781,2]
[392108577,1761166240244,-605.0,0.00044781,2]
[392108579,1761166240253,-817.0,0.00044781,2]
[392108581,1761166240263,-1269.0,0.00044781,2]
[392108583,1761166240272,-6453.0,0.00044781,2]
[392108585,1761166240282,-6536.0,0.00044781,2]
[392108587,1761166240291,-557.0,0.00044781,2]
[392108589,1761166240304,-2592.0,0.00044781,2]
[392108591,1761166240314,-6343.1534723,0.00044789,3]
[392108594,1761166240323,-6856.19114981,0.00044791,15]
[392108596,1761166240333,-5000.0,0.00044799,120]
[392108598,1761166240342,-3100.0,0.000448,16]
[392108600,1761166240351,-500.0,0.00044816,120]
[392108602,1761166240360,-507.68415604,0.00044816,120]
[392108603,1761166240370,-554.29106622,0.00044816,7]
[392108605,1761166240382,-516.65166204,0.00044816,120]
[392108608,1761166240391,-500.0,0.00044816,120]
[392108609,1761166240402,-500.0,0.00044816,30]
[392108612,1761166240412,-500.0,0.00044816,2]
[392108613,1761166240422,-500.0,0.00044816,120]
[392108616,1761166240431,-161.25241672,0.00044823,60]
[392108618,1761166240444,-150.0,0.00044823,60]
[392108620,1761166240453,-258.24662432,0.00044823,2]
[392108622,1761166240462,-239.20465291,0.00044823,60]
[392108624,1761166240472,-250.0,0.00044877,60]
[392108626,1761166240481,-6343.1534723,0.00044879,3]
[392108628,1761166240491,-53643.2018,0.0004488,60]
[392108630,1761166240500,-1383.0,0.00044889,7]
[392108632,1761166240513,-6343.1534723,0.0004489,3]
[392108634,1761166240522,-500.0,0.00044898,120]
[392108636,1761166240531,-500.0,0.00044898,120]
[392108638,1761166240540,-374.6223791,0.00044898,120]
[392108640,1761166240550,-1393.08,0.00044898,120]
[392108642,1761166240560,-500.0,0.00044898,120]
[392108644,1761166240570,-621.8137669,0.00044898,120]
[392108646,1761166240580,-500.0,0.00044898,120]
[392108648,1761166240589,-500.0,0.00044898,120]
[392108650,1761166240598,-500.0,0.00044898,120]
[392108652,1761166240607,-500.0,0.00044899,120]
[392108654,1761166240617,-500.0,0.00044899,120]
[392108656,1761166240626,-161.80636963,0.000449,20]
[392108658,1761166240635,-168.10142398,0.000449,17]
[392108660,1761166240644,-176.25397829,0.000449,120]
[392108662,1761166240653,-6856.19114981,0.000449,15]
[392108664,1761166240663,-3100.0,0.000449,16]
[392108666,1761166240672,-1126.00132436,0.000449,2]
[392108668,1761166240681,-6343.1534723,0.00044905,3]
[392108670,1761166240692,-15723.7224832,0.00044915,2]
[392108673,1761166240707,-173.09670764,0.00044922,28]
[392108675,1761166240717,-6343.1534723,0.00044937,3]
[392108677,1761166240727,-6343.1534723,0.00044937,3]
[392108679,1761166240737,-38058.9208338,0.00044947,3]
[392108681,1761166240746,-22117.3562288,0.00044947,3]
[392108683,1761166240755,-151.0,0.00044947,120]
[392108685,1761166240765,-151.0,0.00044947,120]
[392108687,1761166240774,-151.0,0.00044947,120]
[392108689,1761166240783,-151.0,0.00044947,120]
[392108691,1761166240792,-151.0,0.00044947,120]
[392108693,1761166240802,-151.0,0.00044947,120]
[392108695,1761166240812,-151.0,0.00044947,120]
[392108697,1761166240821,-151.0,0.00044947,120]
[392108699,1761166240831,-151.0,0.00044947,120]
[392108701,1761166240841,-191.804373,0.00044947,120]
[392108703,1761166240853,-151.0,0.00044947,120]
[392108706,1761166240863,-151.0,0.00044947,120]
[392108708,1761166240872,-151.0,0.00044947,120]
[392108709,1761166240883,-237.606886,0.00044947,120]
[392108712,1761166240893,-151.0,0.00044947,60]
[392108713,1761166240902,-151.0,0.00044947,30]
[392108715,1761166240911,-151.0,0.00044947,120]
[392108717,1761166240923,-151.0,0.00044947,120]
[392108719,1761166240933,-151.0,0.00044947,120]
[392108722,1761166240945,-151.0,0.00044947,120]
[392108724,1761166240955,-151.0,0.00044947,30]
[392108726,1761166240964,-301.749325,0.00044947,120]
[392108728,1761166240974,-151.0,0.00044947,120]
[392108730,1761166240984,-151.0,0.00044947,120]
[392108731,1761166240994,-151.0,0.00044947,120]
[392108733,1761166241003,-151.0,0.00044947,120]
[392108735,1761166241013,-154.837211,0.00044947,30]
[392108738,1761166241023,-151.0,0.00044947,120]
[392108739,1761166241033,-151.0,0.00044947,120]
[392108742,1761166241044,-151.0,0.00044947,120]
[392108744,1761166241054,-151.0,0.00044947,15]
[392108746,1761166241065,-151.0,0.00044947,120]
[392108748,1761166241077,-151.0,0.00044947,120]
[392108750,1761166241087,-151.0,0.00044947,15]
[392108752,1761166241099,-151.0,0.00044947,120]
[392108754,1761166241116,-151.0,0.00044947,120]
[392108756,1761166241126,-151.0,0.00044947,120]
[392108758,1761166241136,-151.0,0.00044947,120]
[392108760,1761166241146,-152.428789,0.00044947,120]
[392108762,1761166241155,-151.0,0.00044947,120]
[392108764,1761166241165,-151.0,0.00044947,120]
[392108766,1761166241175,-151.0,0.00044947,120]
[392108768,1761166241185,-151.0,0.00044947,120]
[392108770,1761166241195,-151.0,0.00044947,120]
[392108772,1761166241205,-151.0,0.00044947,120]
[392108774,1761166241215,-258.807799,0.00044947,120]
[392108776,1761166241225,-151.0,0.00044947,120]
[392108778,1761166241234,-151.0,0.00044947,120]
[392108780,1761166241243,-151.0,0.00044947,120]
[392108782,1761166241253,-151.0,0.00044947,120]
[392108784,1761166241263,-151.0,0.00044947,120]
[392108787,1761166241273,-151.0,0.00044947,120]
[392108789,1761166241283,-151.0,0.00044947,120]
[392108791,1761166241292,-151.0,0.00044947,120]
[392108793,1761166241301,-151.0,0.00044947,120]
[392108795,1761166241311,-151.0,0.00044947,120]
[392108797,1761166241320,-151.0,0.00044947,120]
[392108799,1761166241330,-151.0,0.00044947,120]
[392108801,1761166241340,-151.0,0.00044947,120]
[392108802,1761166241349,-151.0,0.00044947,120]
[392108803,1761166241359,-593.14204,0.00044947,30]
[392108804,1761166241370,-151.0,0.00044947,120]
[392108805,1761166241380,-593.14204,0.00044947,30]
[392108806,1761166241390,-151.0,0.00044947,120]
[392108807,1761166241399,-151.0,0.00044947,120]
[392108808,1761166241409,-277.857082,0.00044947,120]
[392108809,1761166241418,-593.14204,0.00044947,30]
[392108811,1761166241428,-151.0,0.00044947,120]
[392108812,1761166241439,-593.14204,0.00044947,30]
[392108814,1761166241448,-151.0,0.00044947,120]
[392108817,1761166241458,-151.0,0.00044947,120]
[392108818,1761166241467,-170.132369,0.00044947,120]
[392108821,1761166241486,-151.0,0.00044947,120]
[392108824,1761166241496,-151.0,0.00044947,120]
[392108826,1761166241505,-175.935432,0.00044947,120]
[392108828,1761166241515,-151.785257,0.00044947,120]
[392108829,1761166241524,-151.0,0.00044947,120]
[392108832,1761166241535,-151.0,0.00044947,120]
[392108833,1761166241545,-151.0,0.00044947,120]
[392108836,1761166241554,-151.0,0.00044947,120]
[392108837,1761166241564,-151.0,0.00044947,120]
[392108840,1761166241574,-151.0,0.00044947,120]
[392108841,1761166241583,-151.0,0.00044947,14]
[392108843,1761166241593,-181.309918,0.00044947,120]
[392108845,1761166241603,-151.0,0.00044947,120]
[392108848,1761166241612,-151.0,0.00044947,120]
[392108849,1761166241622,-151.0,0.00044947,120]
[392108852,1761166241631,-181.309918,0.00044947,120]
[392108854,1761166241641,-151.0,0.00044947,120]
[392108874,1761166241794,-181.309918,0.00044947,120]
[392108877,1761166241847,-181.309918,0.00044947,120]
[392108879,1761166241857,-151.0,0.00044947,120]
[392108881,1761166241866,-151.0,0.00044947,120]
[392108883,1761166241875,-151.0,0.00044947,120]
[392108885,1761166241886,-151.0,0.00044947,120]
[392108887,1761166241895,-153.552663,0.00044947,120]
[392108889,1761166241905,-151.0,0.00044947,120]
[392108891,1761166241916,-151.0,0.00044947,120]
[392108893,1761166241926,-151.0,0.00044947,90]
[392108895,1761166241935,-151.0,0.00044947,90]
[392108897,1761166241944,-151.0,0.00044947,120]
[392108899,1761166241953,-156.682208,0.00044947,120]
[392108901,1761166241962,-151.0,0.00044947,120]
[392108903,1761166241971,-151.0,0.00044947,120]
[392108905,1761166241980,-151.0,0.00044947,120]
[392108907,1761166241989,-151.0,0.00044947,120]
[392108909,1761166241999,-151.0,0.00044947,120]
[392108911,1761166242008,-151.0,0.00044947,120]
[392108913,1761166242018,-151.0,0.00044947,120]
[392108915,1761166242028,-151.0,0.00044947,120]
[392108917,1761166242038,-151.0,0.00044947,120]
[392108919,1761166242047,-151.0,0.00044947,120]
[392108921,1761166242057,-151.0,0.00044947,120]
[392108923,1761166242066,-157.406248,0.00044947,120]
[392108925,1761166242075,-151.0,0.00044947,120]